bitfinex/quotes_BTCUSD_20240729
["timestamp","ask_amount","ask_price","bid_price","bid_amount"]
[1722272309347,0.05,67065.0,67047.0,0.002]
[1722272309348,0.14914,67051.0,67047.0,0.002]
[1722272309567,0.14309939,67051.0,67047.0,0.002]
[1722272309785,0.398265,67055.0,67048.0,0.149146]
[1722272310000,0.149146,67048.0,67047.0,0.02451103]
[1722272310241,0.447439,67048.0,67047.0,0.02451103]
[1722272310454,0.447439,67048.0,67047.0,0.01751103]
[1722272310672,0.447439,67048.0,67047.0,0.02151103]
[1722272310896,0.768732,67048.0,67047.0,0.02151103]
[1722272311112,0.172146,67048.0,67047.0,0.02151103]
[1722272311653,0.470439,67048.0,67047.0,0.02151103]
[1722272311749,0.768732,67048.0,67047.0,0.02151103]
[1722272312014,1.21012439,67048.0,67047.0,0.02151103]
[1722272312244,0.91183139,67048.0,67047.0,0.004]
[1722272312802,0.298317,67043.0,67040.0,0.01751103]
[1722272313026,0.298317,67043.0,67036.0,0.009229]
[1722272313027,0.149168,67039.0,67036.0,0.009229]
[1722272313282,0.149171,67037.0,67036.0,0.009229]
[1722272313749,0.149169,67038.0,67036.0,0.009229]
[1722272313966,0.02340062,67037.0,67036.0,0.009229]
[1722272314192,0.149169,67038.0,67036.0,0.009229]
[1722272314415,0.44142039,67042.0,67036.0,0.009229]
[1722272314641,0.149167,67039.0,67036.0,0.009229]
[1722272314864,0.023,67041.0,67036.0,0.009229]
[1722272315121,0.298304,67046.0,67036.0,0.009229]
[1722272315409,0.149156,67044.0,67039.0,0.149165]
[1722272315631,0.298309,67045.0,67036.0,0.009229]
[1722272315900,0.298311,67044.0,67036.0,0.009229]
[1722272316122,0.298311,67044.0,67036.0,0.307575]
[1722272316376,0.149154,67045.0,67040.0,0.149163]
[1722272316598,0.149155,67044.0,67039.0,0.149166]
[1722272316865,0.298317,67043.0,67036.0,0.009229]
[1722272317107,0.14916,67042.0,67037.0,0.149169]
[1722272317377,0.02340006,67042.0,67036.0,0.009229]
[1722272317608,0.149156,67044.0,67039.0,0.149165]
[1722272317837,0.14309939,67046.0,67036.0,0.009229]
[1722272318062,0.149153,67045.0,67040.0,0.149164]
[1722272318259,0.149156,67044.0,67040.0,0.01751103]
[1722272318459,0.149155,67045.0,67040.0,0.01751103]
[1722272318688,0.29225139,67046.0,67041.0,0.149162]
[1722272318837,0.149154,67045.0,67040.0,0.16667403]
[1722272319020,0.149155,67044.0,67040.0,0.01751103]
[1722272319239,0.14709939,67046.0,67040.0,0.16667503]
[1722272319240,0.149154,67045.0,67040.0,0.16667503]
[1722272319447,0.149156,67044.0,67040.0,0.01751103]
[1722272319698,0.149159,67043.0,67040.0,0.01951103]
[1722272319872,0.298309,67045.0,67040.0,0.01951103]
[1722272320073,0.14309939,67046.0,67040.0,0.01951103]
[1722272320273,0.149162,67041.0,67040.0,0.01951103]
[1722272320690,0.447486,67041.0,67040.0,0.01951103]
[1722272320888,0.47088607,67041.0,67040.0,0.01951103]
[1722272321114,0.17256207,67041.0,67040.0,0.01951103]
[1722272321614,0.47088607,67041.0,67040.0,0.01951103]
[1722272322171,0.447486,67041.0,67040.0,0.01951103]
[1722272322598,0.91190939,67041.0,67040.0,0.01951103]
[1722272322962,0.61358539,67041.0,67040.0,0.01951103]
[1722272323592,0.31526139,67041.0,67040.0,0.01951103]
[1722272323838,0.31526139,67041.0,67040.0,0.01751103]
[1722272324242,0.31726139,67041.0,67040.0,0.01751103]
[1722272324445,0.151162,67041.0,67040.0,0.01751103]
[1722272324850,0.002,67041.0,67040.0,0.01751103]
[1722272325211,0.149154,67045.0,67040.0,0.23927503]
[1722272325397,0.149152,67046.0,67041.0,0.149161]
[1722272325614,0.14309939,67046.0,67042.0,0.14916]
[1722272325822,0.02339945,67044.0,67040.0,0.23327503]
[1722272326035,0.14916,67042.0,67040.0,0.08311103]
[1722272326209,0.149158,67043.0,67040.0,0.01751103]
[1722272326418,0.149161,67042.0,67040.0,0.02251103]
[1722272326616,0.149161,67042.0,67040.0,0.01751103]
[1722272326817,0.149156,67044.0,67040.0,0.01751103]
[1722272327037,0.149156,67044.0,67042.0,0.005]
[1722272327038,0.149158,67043.0,67042.0,0.005]
[1722272327165,0.149156,67044.0,67042.0,0.005]
[1722272327360,0.149158,67043.0,67042.0,0.005]
[1722272327785,0.447474,67043.0,67042.0,0.005]
[1722272327958,0.59057339,67043.0,67042.0,0.005]
[1722272328158,0.91188939,67043.0,67042.0,0.005]
[1722272328365,0.149162,67041.0,67040.0,0.01751103]
[1722272328584,0.2181,67044.0,67040.0,0.16667403]
[1722272328782,0.149156,67044.0,67040.0,0.01751103]
[1722272328983,0.149159,67043.0,67040.0,0.01751103]
[1722272329275,0.14916,67042.0,67040.0,0.01751103]
[1722272329421,0.149158,67043.0,67040.0,0.01751103]
[1722272329820,0.149151,67046.0,67041.0,0.149161]
[1722272330087,0.149151,67046.0,67040.0,0.01751103]
[1722272330088,0.172147,67048.0,67043.0,0.149156]
[1722272330558,0.172147,67048.0,67042.0,0.29832]
[1722272330559,0.023,67048.0,67044.0,0.149155]
[1722272330781,0.149145,67049.0,67044.0,0.149155]
[1722272330913,0.149145,67049.0,67040.0,0.31783603]
[1722272330914,0.149147,67048.0,67043.0,0.149155]
[1722272331130,0.149153,67045.0,67040.0,0.02351103]
[1722272331330,0.149152,67046.0,67040.0,0.02351103]
[1722272331674,0.149152,67046.0,67041.0,0.149162]
[1722272332021,0.149152,67046.0,67043.0,0.002]
[1722272332459,0.149155,67044.0,67043.0,0.002]
[1722272333019,0.298296,67048.0,67043.0,0.002]
[1722272333222,0.52416897,67050.0,67043.0,0.002]
[1722272333435,0.149147,67048.0,67043.0,0.151157]
[1722272333677,0.149149,67047.0,67042.0,0.149159]
[1722272333875,0.149149,67047.0,67043.0,0.00144579]
[1722272334335,0.298269,67054.0,67045.0,0.0774]
[1722272334541,0.363237,67061.0,67048.0,0.07154355]
[1722272334720,0.19488334,67060.0,67048.0,0.07154355]
[1722272334934,0.19488334,67060.0,67053.0,0.298269]
[1722272334935,0.14309939,67060.0,67053.0,0.298269]
[1722272335084,0.065,67066.0,67051.0,0.298277]
[1722272335085,0.298221,67065.0,67051.0,0.05]
[1722272335290,0.149116,67062.0,67055.0,0.29826]
[1722272335504,0.14309939,67062.0,67056.0,0.298257]
[1722272335711,0.149116,67062.0,67055.0,0.01751103]
[1722272335907,0.065,67066.0,67056.0,0.298257]
[1722272336114,0.00788734,67072.0,67067.0,0.298209]
[1722272336317,0.05,67086.0,67065.0,0.01751103]
[1722272336318,0.298148,67081.0,67065.0,0.01751103]
[1722272336512,0.298148,67081.0,67077.0,0.07154355]
[1722272336735,0.298148,67081.0,67074.0,0.1423]
[1722272336736,0.42926131,67106.0,67080.0,0.298148]
[1722272336943,0.42926131,67106.0,67075.0,0.01751103]
[1722272336944,0.42926131,67087.0,67075.0,0.31568203]
[1722272337145,0.05,67101.0,67075.0,0.31568203]
[1722272337146,0.149058,67088.0,67081.0,0.149072]
[1722272337358,0.2181,67098.0,67076.0,0.298169]
[1722272337359,0.298111,67090.0,67076.0,0.298169]
[1722272337554,0.2181,67092.0,67076.0,0.298169]
[1722272337753,0.14906,67087.0,67081.0,0.149072]
[1722272337957,0.298116,67088.0,67079.0,0.298154]
[1722272338166,0.298076,67097.0,67087.0,0.298119]
[1722272338367,0.14309939,67093.0,67087.0,0.01751103]
[1722272338978,0.149057,67089.0,67087.0,0.01751103]
[1722272339114,0.44119239,67093.0,67087.0,0.01751103]
[1722272339490,0.02338421,67089.0,67087.0,0.01751103]
[1722272340030,0.14309939,67093.0,67087.0,0.16656903]
[1722272340255,0.023,67092.0,67087.0,0.01751103]
[1722272340433,0.447172,67088.0,67087.0,0.01751103]
[1722272340655,0.447172,67088.0,67071.0,0.0647]
[1722272340656,0.16609939,67088.0,67078.0,0.01751103]
[1722272341028,0.149078,67079.0,67078.0,0.01751103]
[1722272341227,0.29217739,67079.0,67078.0,0.01751103]
[1722272341346,0.91148739,67079.0,67078.0,0.01751103]
[1722272341553,0.61333239,67079.0,67078.0,0.01751103]
[1722272341749,0.26609939,67079.0,67069.0,0.01751103]
[1722272341965,0.447292,67070.0,67069.0,0.01751103]
[1722272342169,0.61339139,67070.0,67069.0,0.01751103]
[1722272342930,0.91158639,67070.0,67069.0,0.01751103]
[1722272343158,0.91158639,67070.0,67059.0,0.1405]
[1722272343159,0.18949076,67070.0,67061.0,0.01751103]
[1722272343306,0.298204,67068.0,67061.0,0.01751103]
[1722272343506,0.149114,67063.0,67061.0,0.01751103]
[1722272343704,0.149114,67063.0,67036.0,0.10323472]
[1722272343705,0.298231,67062.0,67052.0,0.0791]
[1722272343913,0.2181,67061.0,67052.0,0.0791]
[1722272344132,0.149125,67058.0,67052.0,0.0791]
[1722272344344,0.14309939,67062.0,67055.0,0.298262]
[1722272344534,0.0233941,67060.0,67052.0,0.0791]
[1722272344735,0.298222,67065.0,67052.0,0.0791]
[1722272344941,0.149116,67062.0,67056.0,0.149127]
[1722272345140,0.29221139,67064.0,67058.0,0.149123]
[1722272345349,0.29221139,67064.0,67055.0,0.298262]
[1722272345350,0.149115,67062.0,67055.0,0.298262]
[1722272345501,0.149116,67062.0,67054.0,0.298266]
[1722272345727,0.14309939,67064.0,67052.0,0.377373]
[1722272345922,0.14912,67060.0,67055.0,0.149131]
[1722272346128,0.149125,67058.0,67052.0,0.0791]
[1722272346341,0.298239,67061.0,67053.0,0.003]
[1722272346342,0.4474,67054.0,67053.0,0.003]
[1722272346703,0.149133,67054.0,67053.0,0.003]
[1722272346912,0.91176639,67054.0,67053.0,0.003]
[1722272347114,1.21003339,67054.0,67053.0,0.003]
[1722272347335,0.91176639,67054.0,67053.0,0.003]
[1722272347513,0.31523239,67054.0,67053.0,0.003]
[1722272347812,0.46436639,67054.0,67046.0,0.3835]
[1722272347965,0.149139,67052.0,67046.0,0.532651]
[1722272348148,0.46437039,67053.0,67046.0,0.3835]
[1722272348352,0.149147,67048.0,67046.0,0.3835]
[1722272348607,0.14309939,67053.0,67046.0,0.3835]
[1722272348840,0.14309939,67053.0,67044.0,0.0809]
[1722272348841,0.149149,67047.0,67044.0,0.0809]
[1722272349044,0.149151,67046.0,67044.0,0.0809]
[1722272349567,0.298299,67047.0,67044.0,0.0809]
[1722272349877,0.14309939,67053.0,67044.0,0.0809]
[1722272350083,0.149153,67045.0,67041.0,0.0633]
[1722272350292,0.298298,67047.0,67041.0,0.212461]
[1722272350494,0.149153,67045.0,67041.0,0.0633]
[1722272350783,0.149156,67044.0,67040.0,0.01751103]
[1722272350956,0.2181,67049.0,67040.0,0.01751103]
[1722272351277,0.2181,67049.0,67041.0,0.149162]
[1722272351278,0.149153,67046.0,67041.0,0.149162]
[1722272351434,0.298297,67048.0,67040.0,0.01751103]
[1722272351435,0.149153,67045.0,67040.0,0.16667503]
[1722272351636,0.149159,67043.0,67040.0,0.01751103]
[1722272352075,0.2181,67049.0,67040.0,0.01751103]
[1722272352276,0.2181,67049.0,67040.0,0.16667503]
[1722272352277,0.298298,67047.0,67040.0,0.16667503]
[1722272352448,0.02339935,67043.0,67040.0,0.01751103]
[1722272353205,0.2181,67049.0,67041.0,0.298324]
[1722272353334,0.298295,67048.0,67041.0,0.149162]
[1722272353537,0.149152,67046.0,67040.0,0.01751103]
[1722272353737,0.149152,67046.0,67041.0,0.149162]
[1722272353945,0.298316,67043.0,67040.0,0.01751103]
[1722272354298,0.149152,67046.0,67042.0,0.000924]
[1722272354705,0.15074105,67053.0,67042.0,0.000924]
[1722272354908,0.149157,67044.0,67042.0,0.000924]
[1722272355281,0.298294,67048.0,67042.0,0.000924]
[1722272355449,0.149153,67046.0,67042.0,0.000924]
[1722272355645,0.298298,67047.0,67042.0,0.150084]
[1722272355646,0.14915,67047.0,67042.0,0.150084]
[1722272355899,0.14915,67047.0,67042.0,0.154084]
[1722272356106,0.17255,67046.0,67042.0,0.004924]
[1722272356250,0.023399,67046.0,67043.0,0.149157]
[1722272356451,0.023399,67046.0,67042.0,0.154083]
[1722272356704,0.17255,67046.0,67042.0,0.154083]
[1722272356883,0.298296,67048.0,67043.0,0.149157]
[1722272356884,0.149147,67048.0,67043.0,0.149157]
[1722272357089,0.149149,67047.0,67042.0,0.154083]
[1722272357305,0.149152,67046.0,67042.0,0.004924]
[1722272357513,0.298298,67047.0,67042.0,0.004924]
[1722272357733,0.149151,67046.0,67042.0,0.004924]
[1722272357942,0.298316,67043.0,67042.0,0.004924]
[1722272358141,0.298316,67043.0,67042.0,0.000924]
[1722272358142,0.149158,67043.0,67042.0,0.000924]
[1722272358309,0.149156,67044.0,67042.0,0.002924]
[1722272358509,0.29831,67045.0,67042.0,0.002924]
[1722272358510,0.149155,67045.0,67042.0,0.002924]
[1722272358709,0.149155,67045.0,67042.0,0.000924]
[1722272358710,0.149154,67045.0,67042.0,0.000924]
[1722272358911,0.149154,67045.0,67042.0,0.004924]
[1722272359122,0.30591366,67053.0,67042.0,0.004924]
[1722272359123,0.00764166,67053.0,67052.0,0.447412]
[1722272359337,0.0619,67069.0,67053.0,0.1427]
[1722272359570,0.149121,67060.0,67054.0,0.149133]
[1722272359776,0.298227,67063.0,67053.0,0.1427]
[1722272360013,0.149125,67058.0,67053.0,0.291835]
[1722272360910,0.1725186,67059.0,67054.0,0.149132]
[1722272361282,0.1725176,67059.0,67054.0,0.149132]
[1722272361407,0.1725176,67059.0,67053.0,0.1427]
[1722272361611,0.1725176,67059.0,67055.0,0.14913]
[1722272361612,0.004,67058.0,67055.0,0.14913]
[1722272362169,0.149125,67058.0,67054.0,0.149132]
[1722272362322,0.0233956,67059.0,67054.0,0.298266]
[1722272362547,0.1775176,67059.0,67054.0,0.149133]
[1722272362767,0.1775176,67059.0,67055.0,0.14913]
[1722272362928,0.1775176,67059.0,67053.0,0.440968]
[1722272362929,0.0283956,67059.0,67053.0,0.1427]
[1722272363353,0.149135,67053.0,67052.0,0.01751103]
[1722272363672,0.298253,67057.0,67052.0,0.01751103]
[1722272363888,0.298263,67055.0,67052.0,0.01751103]
[1722272364112,0.149134,67054.0,67052.0,0.01751103]
[1722272364316,0.29223439,67053.0,67052.0,0.01751103]
[1722272364516,0.29223439,67053.0,67040.0,0.149163]
[1722272364517,0.23119939,67053.0,67040.0,0.149163]
[1722272364855,0.298292,67049.0,67042.0,0.000924]
[1722272364975,0.31524639,67048.0,67043.0,0.149157]
[1722272365174,0.16609939,67048.0,67042.0,0.000924]
[1722272365381,0.2181,67057.0,67044.0,0.29831]
[1722272365582,0.149144,67049.0,67044.0,0.149154]
[1722272365783,0.149142,67050.0,67045.0,0.149153]
[1722272366077,0.14914,67051.0,67046.0,0.149151]
[1722272366593,0.149142,67050.0,67045.0,0.149152]
[1722272366983,0.149139,67052.0,67047.0,0.149148]
[1722272367383,0.298271,67053.0,67048.0,0.149145]
[1722272367384,0.002,67051.0,67048.0,0.149145]
[1722272367588,0.02539806,67051.0,67048.0,0.149145]
[1722272367787,0.02539806,67051.0,67044.0,0.298309]
[1722272367788,0.02539806,67051.0,67050.0,0.298284]
[1722272368014,0.02539806,67051.0,67050.0,0.149142]
[1722272368451,0.02539806,67051.0,67049.0,0.149144]
[1722272368452,0.02339806,67051.0,67049.0,0.149144]
[1722272368645,0.02339806,67051.0,67050.0,0.447426]
[1722272368984,0.149118,67061.0,67053.0,0.29827]
[1722272369192,0.149119,67061.0,67049.0,0.51212855]
[1722272369392,0.149122,67059.0,67054.0,0.149133]
[1722272369615,0.298238,67061.0,67054.0,0.01751103]
[1722272369820,0.149131,67055.0,67054.0,0.01751103]
[1722272370033,0.59049239,67055.0,67054.0,0.01751103]
[1722272370243,0.123,67062.0,67055.0,0.14913]
[1722272370244,0.149122,67060.0,67055.0,0.14913]
[1722272370439,0.14309939,67059.0,67056.0,0.149129]
[1722272370570,0.023,67058.0,67056.0,0.149127]
[1722272370753,0.023,67058.0,67054.0,0.01751103]
[1722272370754,0.16609939,67058.0,67054.0,0.01751103]
[1722272370961,0.01125419,67057.0,67054.0,0.01751103]
[1722272371175,0.31522439,67058.0,67054.0,0.01751103]
[1722272371377,0.01125414,67057.0,67054.0,0.01751103]
[1722272371573,0.01125414,67057.0,67054.0,0.16664303]
[1722272372016,0.01125414,67057.0,67054.0,0.03225595]
[1722272372314,0.01125414,67057.0,67054.0,0.18138795]
[1722272372517,0.01125414,67057.0,67055.0,0.14913]
[1722272372741,0.01125414,67057.0,67056.0,0.447387]
[1722272372952,0.004,67058.0,67057.0,0.149126]
[1722272373188,0.004,67058.0,67057.0,0.745632]
[1722272373819,0.004,67058.0,67057.0,0.447379]
[1722272374550,0.004,67058.0,67057.0,0.745632]
[1722272374749,0.298209,67067.0,67056.0,0.1385]
[1722272374963,0.22589777,67066.0,67054.0,0.03225595]
[1722272375167,0.447393,67055.0,67054.0,0.03225595]
[1722272375364,0.01125483,67055.0,67054.0,0.03225595]
[1722272375780,0.03465009,67055.0,67054.0,0.33052295]
[1722272376007,0.01125483,67055.0,67054.0,0.03225595]
[1722272376195,0.149125,67058.0,67054.0,0.18138895]
[1722272376371,0.03425366,67057.0,67054.0,0.03225595]
[1722272376567,0.023,67057.0,67054.0,0.18138895]
[1722272376768,0.01125376,67056.0,67054.0,0.03225595]
[1722272377050,0.16038276,67056.0,67054.0,0.03225595]
[1722272377244,0.023,67057.0,67054.0,0.18138795]
[1722272377461,0.023,67057.0,67055.0,0.149131]
[1722272377462,0.01125393,67056.0,67055.0,0.149131]
[1722272377621,0.03101496,67062.0,67054.0,0.03225595]
[1722272377824,0.01125446,67061.0,67060.0,0.44736]
[1722272377982,0.14912,67060.0,67054.0,0.09755595]
[1722272378190,0.01125456,67059.0,67054.0,0.09755595]
[1722272378512,0.149116,67062.0,67056.0,0.298256]
[1722272378707,0.01125549,67061.0,67058.0,0.149123]
[1722272378938,0.01125549,67060.0,67058.0,0.149123]
[1722272379111,0.01125549,67060.0,67058.0,0.149122]
[1722272379320,0.01125549,67060.0,67059.0,0.149122]
[1722272379522,0.01125549,67060.0,67054.0,0.09755595]
[1722272379523,0.01125549,67060.0,67057.0,0.149126]
[1722272379721,0.149115,67062.0,67057.0,0.149126]
[1722272379944,0.298211,67067.0,67060.0,0.149118]
[1722272380205,0.298219,67065.0,67059.0,0.14912]
[1722272380413,0.321211,67067.0,67058.0,0.298248]
[1722272380618,0.01125549,67066.0,67062.0,0.149114]
[1722272380824,0.16036149,67066.0,67061.0,0.03225595]
[1722272381072,0.447346,67062.0,67061.0,0.03225595]
[1722272381268,0.89993188,67062.0,67061.0,0.03225595]
[1722272381569,0.98493188,67062.0,67061.0,0.03225595]
[1722272381749,1.50126288,67062.0,67061.0,0.03225595]
[1722272381952,1.50126288,67062.0,67054.0,0.03225595]
[1722272381953,0.745655,67055.0,67054.0,0.03225595]
[1722272382126,0.745655,67055.0,67043.0,0.149157]
[1722272382127,0.298286,67050.0,67043.0,0.149157]
[1722272382336,0.298286,67050.0,67045.0,0.149151]
[1722272382337,0.14309939,67049.0,67045.0,0.149151]
[1722272382534,0.14309939,67049.0,67045.0,0.149152]
[1722272382755,0.023,67048.0,67045.0,0.149152]
[1722272382963,0.023,67048.0,67043.0,0.298315]
[1722272382964,0.023,67048.0,67046.0,0.14915]
[1722272383363,0.023,67048.0,67045.0,0.149152]
[1722272383900,0.02339783,67049.0,67045.0,0.298304]
[1722272384040,0.02339783,67049.0,67048.0,0.149146]
[1722272384437,0.02339783,67049.0,67048.0,0.447439]
[1722272384685,0.02339783,67049.0,67048.0,0.149146]
[1722272385008,0.02339783,67049.0,67042.0,0.078024]
[1722272385009,0.16649722,67049.0,67042.0,0.078024]
[1722272385227,0.149158,67043.0,67042.0,0.000924]
[1722272385389,0.59057339,67043.0,67042.0,0.000924]
[1722272385613,0.91188939,67043.0,67042.0,0.000924]
[1722272385789,0.61357339,67043.0,67042.0,0.000924]
[1722272385994,0.31525739,67043.0,67042.0,0.000924]
[1722272386209,0.91188939,67043.0,67042.0,0.000924]
[1722272386409,0.61357339,67043.0,67042.0,0.000924]
[1722272386615,0.91188939,67043.0,67042.0,0.000924]
[1722272387502,1.21020539,67043.0,67042.0,0.000924]
[1722272388154,0.91188939,67043.0,67042.0,0.000924]
[1722272388761,0.91996962,67043.0,67042.0,0.000924]
[1722272389977,0.32333762,67043.0,67042.0,0.000924]
[1722272390175,0.91996962,67043.0,67042.0,0.000924]
[1722272390331,0.32333762,67043.0,67042.0,0.000924]
[1722272390536,0.62365362,67043.0,67042.0,0.000924]
[1722272390978,0.03108023,67043.0,67042.0,0.000924]
[1722272391134,0.1,67047.0,67042.0,0.000924]
[1722272391339,0.149158,67043.0,67042.0,0.000924]
[1722272391559,0.46440539,67046.0,67042.0,0.000924]
[1722272391762,0.149156,67044.0,67042.0,0.000924]
[1722272391961,0.29225539,67044.0,67042.0,0.000924]
[1722272392361,0.14309939,67044.0,67042.0,0.000924]
[1722272393505,0.29225539,67044.0,67042.0,0.000924]
[1722272394750,0.14409939,67044.0,67042.0,0.000924]
[1722272394971,0.14409939,67044.0,67043.0,0.00103847]
[1722272395176,0.001,67044.0,67043.0,0.44851247]
[1722272395392,0.001,67044.0,67043.0,0.74579]
[1722272396607,0.001,67044.0,67043.0,0.447474]
[1722272396854,0.001,67044.0,67042.0,0.000924]
[1722272397004,0.001,67044.0,67042.0,0.150083]
[1722272397207,0.001,67044.0,67043.0,0.149158]
[1722272397451,0.001,67044.0,67043.0,0.447474]
[1722272397661,0.023,67049.0,67042.0,0.000924]
[1722272397863,0.14309939,67048.0,67044.0,0.298311]
[1722272398065,0.298262,67055.0,67048.0,0.149146]
[1722272398267,0.14309939,67054.0,67050.0,0.149142]
[1722272398424,0.14309939,67054.0,67049.0,0.0015542]
[1722272398827,0.14309939,67054.0,67050.0,0.149142]
[1722272399071,0.29223239,67054.0,67051.0,0.00092429]
[1722272399297,0.149131,67055.0,67049.0,0.149144]
[1722272399504,0.14309939,67054.0,67050.0,0.15018977]
[1722272399717,0.1,67062.0,67052.0,0.07154355]
[1722272399887,0.1,67062.0,67057.0,0.149125]
[1722272399888,0.14309939,67061.0,67057.0,0.149125]
[1722272400274,0.516306,67068.0,67057.0,0.149125]
[1722272400275,0.00084,67072.0,67057.0,0.10678208]
[1722272400479,0.01125185,67071.0,67069.0,0.0609]
[1722272400745,0.59039139,67070.0,67069.0,0.03225595]
[1722272400865,0.89983824,67070.0,67069.0,0.03225595]
[1722272401512,0.149113,67063.0,67062.0,0.03225595]
[1722272401721,0.745567,67063.0,67062.0,0.03225595]
[1722272401924,0.89991991,67063.0,67062.0,0.03225595]
[1722272402201,1.22114791,67063.0,67062.0,0.03225595]
[1722272402379,0.447426,67050.0,67049.0,0.007]
[1722272402730,0.447426,67050.0,67048.0,0.03225595]
[1722272402731,0.447433,67049.0,67048.0,0.03225595]
[1722272402928,0.745722,67049.0,67048.0,0.03225595]
[1722272403357,0.149139,67052.0,67048.0,0.03225595]
[1722272403698,0.29223739,67052.0,67048.0,0.03225595]
[1722272403852,0.298281,67051.0,67048.0,0.03225595]
[1722272404054,0.14309939,67052.0,67048.0,0.03625595]
[1722272404055,0.447433,67049.0,67048.0,0.03625595]
[1722272404255,0.95422139,67049.0,67048.0,0.004]
[1722272404454,0.149158,67043.0,67042.0,0.000924]
[1722272404903,0.74579,67043.0,67042.0,0.000924]
[1722272405037,1.044106,67043.0,67042.0,0.000924]
[1722272405440,1.18720539,67043.0,67042.0,0.000924]
[1722272405684,1.21020539,67043.0,67042.0,0.000924]
[1722272406556,0.91188939,67043.0,67042.0,0.000924]
[1722272406760,0.61357339,67043.0,67042.0,0.000924]
[1722272407118,0.001,67052.0,67042.0,0.000924]
[1722272407348,0.149157,67044.0,67042.0,0.000924]
[1722272407554,0.149158,67043.0,67042.0,0.000924]
[1722272408041,0.447474,67043.0,67042.0,0.000924]
[1722272408241,0.91388939,67043.0,67042.0,0.000924]
[1722272408441,0.91188939,67043.0,67042.0,0.000924]
[1722272408652,1.21020539,67043.0,67042.0,0.000924]
[1722272408810,1.21020539,67043.0,67042.0,0.006924]
[1722272409177,1.27330539,67043.0,67042.0,0.000924]
[1722272409379,0.745855,67037.0,67036.0,0.00743145]
[1722272409553,0.91195439,67037.0,67036.0,0.00743145]
[1722272409921,1.3336986,67037.0,67036.0,0.00743145]
[1722272410363,1.31029639,67037.0,67036.0,0.00743145]
[1722272412287,1.37689639,67037.0,67021.0,0.0015542]
[1722272412513,1.45229639,67037.0,67005.0,0.001]
[1722272412876,1.50362294,67037.0,66988.0,0.13397045]
[1722272413081,1.43702294,67037.0,66969.0,0.0627]
[1722272413308,1.43702294,67037.0,66947.0,0.19183536]
[1722272413309,0.50080486,67022.0,66947.0,0.19183536]
[1722272413506,0.50080486,67022.0,66937.0,0.26369009]
[1722272413507,0.50080486,67022.0,66901.0,0.04469242]
[1722272413508,0.498895,66913.0,66901.0,0.04469242]
[1722272413702,0.614822,66907.0,66901.0,0.04469242]
[1722272413911,0.614822,66907.0,66900.0,4.81530744]
[1722272413912,0.149474,66901.0,66900.0,4.81530744]
[1722272414087,0.847372,66901.0,66900.0,4.68888561]
[1722272414225,1.4259266,66901.0,66900.0,4.68888561]
[1722272414447,0.4358698,66901.0,66900.0,4.68888561]
[1722272414694,0.59120275,66901.0,66900.0,4.68888561]
[1722272414891,0.59120275,66901.0,66875.0,0.17154355]
[1722272414892,0.548603,66874.0,66873.0,0.3565691]
[1722272415091,1.72492868,66874.0,66873.0,0.1452431]
[1722272415408,1.72492868,66874.0,66846.0,0.07464463]
[1722272415409,0.954635,66872.0,66846.0,0.07464463]
[1722272415612,1.41952068,66872.0,66846.0,0.07464463]
[1722272415762,0.27274768,66872.0,66854.0,0.05]
[1722272415964,0.1,66872.0,66855.0,0.05]
[1722272416170,0.1,66872.0,66850.0,0.0653]
[1722272416379,0.1,66872.0,66855.0,0.1]
[1722272416596,0.1,66872.0,66846.0,0.07464463]
[1722272416773,0.24309939,66872.0,66871.0,0.12291703]
[1722272416972,0.24309939,66872.0,66871.0,0.11174275]
[1722272417205,0.30523258,66872.0,66871.0,0.11174275]
[1722272417399,0.24309939,66872.0,66871.0,0.11174275]
[1722272417641,0.0015542,66893.0,66885.0,0.1]
[1722272417809,0.0802,66896.0,66889.0,0.07154355]
[1722272417810,0.1242858,66892.0,66889.0,0.07154355]
[1722272418029,0.0015542,66895.0,66894.0,0.1]
[1722272418233,0.0015542,66895.0,66889.0,0.07154355]
[1722272418234,0.0015542,66900.0,66899.0,0.05]
[1722272418458,0.0015542,66900.0,66899.0,0.123]
[1722272418659,0.0015542,66900.0,66899.0,0.583737]
[1722272419078,0.05,66929.0,66922.0,0.05]
[1722272419285,0.05,66907.0,66905.0,0.1]
[1722272419575,0.21464294,66906.0,66897.0,0.1]
[1722272419785,0.298853,66923.0,66882.0,0.0638]
[1722272419786,0.07154355,66920.0,66903.0,0.05]
[1722272419957,0.55350302,66919.0,66902.0,0.1]
[1722272420156,0.55350302,66919.0,66883.0,0.299025]
[1722272420157,0.12424171,66918.0,66895.0,0.1]
[1722272420332,0.05,66901.0,66895.0,0.05]
[1722272420501,0.05,66909.0,66902.0,0.1]
[1722272420701,0.14309939,66908.0,66907.0,0.1]
[1722272420920,0.14309939,66908.0,66893.0,0.298982]
[1722272420921,0.05,66901.0,66893.0,0.1]
[1722272421132,0.14309939,66900.0,66899.0,0.05]
[1722272421378,0.24309939,66900.0,66895.0,0.1]
[1722272421885,0.05,66890.0,66889.0,0.1]
[1722272422092,0.14309939,66890.0,66889.0,0.1]
[1722272422323,0.24309939,66890.0,66889.0,0.1]
[1722272422532,0.002,66915.0,66913.0,0.149446]
[1722272422731,0.42926131,66917.0,66914.0,0.05]
[1722272422860,0.05,66908.0,66907.0,0.1]
[1722272423069,0.05,66911.0,66909.0,0.05]
[1722272423266,0.14309939,66910.0,66909.0,0.05000323]
[1722272423858,0.05,66917.0,66916.0,0.05]
[1722272424068,0.002,66924.0,66922.0,0.05]
[1722272424268,0.002,66924.0,66923.0,0.199425]
[1722272424461,0.0825,66951.0,66939.0,0.05]
[1722272424772,0.14309939,66947.0,66944.0,0.149377]
[1722272425046,0.002,66956.0,66955.0,0.05]
[1722272425330,0.052,66956.0,66955.0,0.05]
[1722272425617,0.05,66941.0,66940.0,0.05]
[1722272425822,0.05,66946.0,66945.0,0.199376]
[1722272426024,0.07154355,66949.0,66948.0,0.05]